bitfinex/quotes_ETHUSD_20251004
["timestamp","ask_amount","ask_price","bid_price","bid_amount"]
[1759536836040,11.77042408,4513.3,4513.2,0.001]
[1759536836442,11.29862408,4513.3,4513.2,0.001]
[1759536839864,10.66502408,4513.3,4513.2,0.001]
[1759536840075,10.66502408,4513.3,4513.2,0.4596]
[1759536841671,8.44935041,4513.3,4513.2,0.4596]
[1759536841965,0.09067577,4513.3,4513.2,0.4596]
[1759536842746,2.30634944,4513.3,4513.2,0.4596]
[1759536842964,2.32301017,4513.3,4513.2,0.4596]
[1759536843877,2.30634944,4513.3,4513.2,0.4596]
[1759536844169,2.30634944,4513.3,4513.2,2.347]
[1759536844381,2.76020881,4513.3,4513.2,2.347]
[1759536845073,2.76020881,4513.3,4513.2,0.001]
[1759536847779,2.30634944,4513.3,4513.2,0.4596]
[1759536851871,2.41674944,4513.3,4513.2,0.4596]
[1759536852520,2.30634944,4513.3,4513.2,0.4596]
[1759536852741,2.41674944,4513.3,4513.2,0.4596]
[1759536856032,2.41674944,4513.3,4513.2,0.001]
[1759536856236,2.41674944,4513.3,4513.2,0.4596]
[1759536858116,2.21577186,4513.1,4513.0,0.001]
[1759536858355,2.23243259,4513.1,4513.0,0.457]
[1759536858853,2.68943259,4513.1,4513.0,0.457]
[1759536859001,3.27957806,4513.1,4513.0,0.457]
[1759536863210,2.68943259,4513.1,4513.0,0.8991]
[1759536863410,2.67277186,4513.1,4513.0,0.457]
[1759536864330,2.68943259,4513.1,4513.0,0.457]
[1759536870523,5.54553259,4513.1,4513.0,0.457]
[1759536870729,6.00582323,4513.1,4513.0,0.457]
[1759536870951,6.47150777,4513.1,4513.0,0.457]
[1759536871589,6.92760777,4513.1,4513.0,1.453]
[1759536872075,6.92760777,4513.1,4513.0,0.001]
[1759536872249,6.92760777,4513.1,4512.9,0.001]
[1759536872250,4.42902096,4513.0,4512.9,0.001]
[1759536872445,4.42902096,4513.0,4512.6,0.001]
[1759536872446,2.21596826,4512.7,4512.6,0.001]
[1759536872695,2.23262899,4512.7,4512.6,0.001]
[1759536873024,5.44772899,4512.7,4512.6,0.001]
[1759536873146,5.44772899,4512.7,4512.5,0.359]
[1759536873147,2.21606648,4512.5,4512.4,1e-08]
[1759536873458,2.23272721,4512.5,4512.4,1e-08]
[1759536873661,5.56577858,4512.5,4512.4,1e-08]
[1759536873865,5.63780246,4512.5,4512.4,1e-08]
[1759536874194,6.56538228,4512.5,4512.4,1e-08]
[1759536874493,6.56461869,4512.5,4512.4,1e-08]
[1759536878365,6.56461869,4512.5,4512.0,1.55000001]
[1759536878366,2.21626293,4512.1,4512.0,1.55000001]
[1759536878570,5.31616914,4512.1,4512.0,1.55000001]
[1759536878769,5.29950841,4512.1,4512.0,1.55000001]
[1759536878997,5.96469614,4512.1,4512.0,1.55000001]
[1759536879778,5.96469614,4512.1,4512.0,1e-08]
[1759536879779,6.42079614,4512.1,4512.0,1e-08]
[1759536881514,6.89594621,4512.1,4512.0,1e-08]
[1759536882288,7.00714621,4512.1,4512.0,1e-08]
[1759536884318,7.64074621,4512.1,4512.0,1e-08]
[1759536884619,1.34709047,4512.0,4511.1,1e-08]
[1759536884836,8.86427173,4511.2,4511.1,1e-08]
[1759536884979,9.3394218,4511.2,4511.1,1e-08]
[1759536885186,9.7955218,4511.2,4511.1,1e-08]
[1759536885408,11.71523704,4511.2,4511.1,1e-08]
[1759536886285,11.71523704,4511.2,4509.6,0.4686]
[1759536886286,2.2174424,4509.7,4509.6,0.4686]
[1759536886483,2.23410313,4509.7,4509.6,0.4686]
[1759536886878,2.70270313,4509.7,4509.6,0.4686]
[1759536887085,5.10270313,4509.7,4509.6,0.4686]
[1759536887279,5.10270313,4509.7,4509.5,0.013]
[1759536887280,4.61749157,4509.6,4509.5,0.013]
[1759536888422,2.21761416,4509.4,4509.1,0.4786]
[1759536888717,2.23429983,4509.3,4509.2,0.4686]
[1759536889729,2.23429983,4509.3,4509.2,2.125]
[1759536890198,4.63429983,4509.3,4509.2,2.5976]
[1759536890409,4.6176391,4509.3,4509.2,2.5976]
[1759536890826,4.6176391,4509.3,4509.2,2.125]
[1759536891792,5.28322677,4509.3,4509.2,2.125]
[1759536891997,2.21768828,4509.2,4509.1,0.01]
[1759536892312,2.23434901,4509.2,4509.1,0.01]
[1759536893499,2.56380516,4509.2,4509.1,0.01]
[1759536894818,2.67500516,4509.2,4509.1,0.01]
[1759536895630,3.34059283,4509.2,4509.1,0.01]
[1759536897942,3.01113668,4509.2,4509.1,0.01]
[1759536899622,3.01113668,4509.2,4509.1,0.4826]
[1759536901144,3.01113668,4509.2,4509.1,0.01]
[1759536904753,0.7934484,4509.2,4509.1,0.4826]
[1759536904955,0.1112,4509.2,4509.1,0.4826]
[1759536905269,0.66547398,4509.7,4509.1,0.78076]
[1759536905552,0.1112,4510.0,4509.3,0.1112]
[1759536905765,0.1112,4510.0,4509.4,2.9726]
[1759536905932,0.1112,4510.0,4509.5,0.74712886]
[1759536906339,0.1112,4510.0,4509.6,0.4726]
[1759536906520,0.1112,4510.0,4509.7,0.02217442]
[1759536906720,0.1112,4510.0,4509.8,0.4726]
[1759536909021,0.1112,4510.0,4509.5,0.4726]
[1759536909223,2.23400479,4509.9,4509.6,2.5]
[1759536909415,2.2174424,4509.7,4509.6,2.9726]
[1759536909614,2.3286424,4509.7,4509.6,2.9726]
[1759536910441,2.3286424,4509.7,4509.6,2.5]
[1759536910826,0.1112,4509.7,4509.6,2.9726]
[1759536911234,2.3286424,4509.7,4509.6,2.9726]
[1759536911758,0.1112,4509.7,4509.6,2.9726]
[1759536911961,2.3286424,4509.7,4509.6,2.9726]
[1759536912662,0.1112,4509.7,4509.6,2.9726]
[1759536913447,0.1112,4509.7,4509.1,0.011]
[1759536913448,0.01666073,4509.7,4509.1,0.011]
[1759536913641,2.2176391,4509.3,4509.2,2.5]
[1759536914740,2.23426516,4509.4,4509.2,2.5]
[1759536914945,0.01666073,4509.4,4509.3,0.4726]
[1759536915194,2.2172949,4510.0,4509.3,0.4726]
[1759536915490,2.88312739,4509.4,4509.3,0.4726]
[1759536915899,2.2176391,4509.3,4509.2,2.5]
[1759536916049,2.23429983,4509.3,4509.2,2.5]
[1759536916777,2.8998373,4509.3,4509.2,2.5]
[1759536917962,3.3451373,4509.3,4509.2,2.5]
[1759536918375,2.8998373,4509.3,4509.2,2.5]
[1759536919460,3.3451373,4509.3,4509.2,2.5]
[1759536919680,3.3451373,4509.3,4509.1,0.011]
[1759536919681,2.21768828,4509.2,4509.1,0.011]
[1759536919880,2.21768828,4509.2,4509.1,0.03]
[1759536919881,2.66298828,4509.2,4509.1,0.03]
[1759536920476,2.7517335,4509.2,4509.1,0.03]
[1759536921082,2.76839423,4509.2,4509.1,0.03]
[1759536921388,2.90132484,4509.2,4509.1,0.03]
[1759536923493,3.01252484,4509.2,4509.1,0.03]
[1759536923894,2.43429423,4509.2,4509.1,0.03]
[1759536928092,2.43429423,4509.2,4509.1,0.4993]
[1759536928277,2.43429423,4509.2,4509.1,0.03]
[1759536929701,2.43429423,4509.2,4509.1,0.4993]
[1759536930306,2.43429423,4509.2,4509.1,0.03]
[1759536930871,2.87209423,4509.2,4509.1,0.03]
[1759536931118,3.38106756,4509.2,4509.1,0.03]
[1759536931334,2.94326756,4509.2,4509.1,0.03]
[1759536934832,2.94326756,4509.2,4509.1,0.011]
[1759536936820,2.94326756,4509.2,4509.1,0.4803]
[1759536937249,2.94326756,4509.2,4509.1,0.011]
[1759536938517,0.19994522,4509.2,4509.1,0.4803]
[1759536938742,2.4176335,4509.2,4509.1,0.4803]
[1759536939659,2.4176335,4509.2,4509.1,0.011]
[1759536944866,2.8554335,4509.2,4509.1,2.511]
[1759536945044,3.4121447,4509.2,4509.1,2.511]
[1759536947267,3.4121447,4509.2,4509.1,0.011]
[1759536947459,3.4121447,4509.2,4509.1,2.511]
[1759536948740,2.9743447,4509.2,4509.1,2.511]
[1759536949944,3.4121447,4509.2,4509.1,2.511]
[1759536951648,2.9743447,4509.2,4509.1,2.511]
[1759536952552,0.75665642,4509.2,4509.1,2.511]
[1759536952751,2.4176335,4509.2,4509.1,2.9538]
[1759536955853,2.4176335,4509.2,4509.1,2.511]
[1759536956893,2.4176335,4509.2,4509.1,2.9538]
[1759536957101,2.4176335,4509.2,4509.1,0.4256452]
[1759536958350,2.4176335,4509.2,4509.1,2.5356452]
[1759536958699,2.4176335,4509.2,4509.1,2.11]
[1759536958907,0.19994522,4509.2,4509.1,2.11]
[1759536959111,7.05,4510.9,4509.1,2.11]
[1759536959112,2.21748865,4509.7,4509.1,2.7638]
[1759536959406,2.21745248,4509.7,4509.2,0.46497688]
[1759536960003,2.21750531,4509.6,4509.2,0.4428]
[1759536960179,0.01666073,4509.7,4509.2,0.4428]
[1759536960519,0.01666073,4509.7,4509.3,0.4428]
[1759536961180,2.23414618,4509.7,4509.4,0.4428]
[1759536961380,2.21750585,4509.6,4509.5,0.4428]
[1759536961966,0.01666073,4509.7,4509.5,0.4428]
[1759536962221,2.21706752,4510.5,4509.6,0.46497491]
[1759536962512,0.66537509,4510.4,4509.6,0.46497491]
[1759536962799,0.02666073,4510.9,4509.6,0.46497491]
[1759536963007,2.21705173,4510.5,4509.6,0.4428]
[1759536963158,0.68199008,4510.7,4509.6,0.4428]
[1759536963600,0.4632,4510.6,4509.7,2.499]
[1759536963905,2.21733483,4510.0,4509.7,2.499]
[1759536964107,2.21733483,4510.0,4509.8,0.4428]
[1759536964302,2.2173341,4510.0,4509.8,0.4428]
[1759536965003,0.66532935,4510.7,4509.7,2.499]
[1759536965206,2.23366068,4510.6,4509.9,0.4428]
[1759536965397,2.21711216,4510.4,4509.9,0.4428]
[1759536965613,0.01666073,4510.4,4509.9,0.4428]
[1759536965815,0.01666073,4510.6,4510.0,0.46497294]
[1759536966392,0.002,4511.1,4510.0,0.46497294]
[1759536966693,0.002,4511.1,4509.1,0.001]
[1759536966694,2.21723508,4510.2,4510.1,2.499]
[1759536967190,0.4632,4510.6,4510.1,2.499]
[1759536967390,2.21715366,4510.3,4510.1,2.499]
[1759536968145,0.01666073,4510.5,4510.1,2.499]
[1759536968347,2.23371404,4510.5,4510.1,2.499]
[1759536968649,2.2171853,4510.3,4510.1,2.499]
[1759536968945,2.21705331,4510.5,4510.1,2.499]
[1759536969148,0.1112,4510.2,4510.1,2.499]
[1759536969294,2.32839657,4510.2,4510.1,2.499]
[1759536969492,2.3450573,4510.2,4510.1,2.499]
[1759536970208,2.3450573,4510.2,4510.1,2.9418]
[1759536970209,0.1112,4510.2,4510.1,2.9418]
[1759536975745,0.1112,4510.2,4510.1,2.499]
[1759536976431,0.1112,4510.2,4510.1,2.9418]
[1759536976805,0.1112,4510.2,4510.1,2.499]
[1759536980232,0.1112,4510.2,4509.6,0.1112]
[1759536980455,0.45156073,4510.1,4509.1,0.001]
[1759536980652,2.21734118,4510.0,4509.2,2.9702]
[1759536980858,2.21735274,4509.9,4509.2,2.9702]
[1759536981466,2.2173957,4509.8,4509.2,2.9702]
[1759536981828,2.65215402,4510.1,4509.2,2.9702]
[1759536981829,2.21735121,4509.9,4509.2,2.9702]
[1759536982638,2.21750503,4509.6,4509.1,0.001]
[1759536982958,0.93297052,4509.9,4509.1,0.001]
[1759536982959,0.4349,4509.9,4509.2,2.498]
[1759536983158,2.21743823,4509.8,4509.2,2.498]
[1759536983532,2.21745635,4509.7,4509.2,2.498]
[1759536983736,2.21745635,4509.7,4509.2,2.9702]
[1759536983935,2.66891687,4509.9,4509.2,2.9702]
[1759536984136,0.45156073,4509.9,4509.2,2.9702]
[1759536984336,2.21739323,4509.8,4509.2,2.9702]
[1759536984531,2.21745286,4509.7,4509.2,2.9702]
[1759536985566,2.21745286,4509.7,4509.2,2.498]
[1759536985767,2.21745286,4509.7,4509.3,0.4722]
[1759536986140,2.21748063,4509.7,4509.3,0.4722]
[1759536986570,2.65224655,4509.9,4509.3,0.4722]
[1759536986571,2.21749836,4509.6,4509.3,0.4722]
[1759536986753,0.4349,4509.9,4509.2,2.498]
[1759536986953,2.2175701,4509.5,4509.2,2.498]
[1759536987342,2.21741925,4509.8,4509.3,0.4722]
[1759536987546,2.21750148,4509.6,4509.4,0.4695]
[1759536987746,2.21754074,4509.5,4509.4,0.4695]
[1759536987932,2.21754074,4509.5,4509.2,2.498]
[1759536987933,2.2175993,4509.4,4509.2,2.498]
[1759536988269,0.9331,4510.0,4509.2,2.498]
[1759536988477,0.01666073,4509.9,4509.3,0.4695]
[1759536988776,2.21751288,4509.6,4509.3,0.4695]
[1759536988951,2.21755251,4509.5,4509.3,0.4695]
[1759536989273,2.21752991,4509.6,4509.4,0.4695]
[1759536989570,2.21752991,4509.6,4509.2,2.498]
[1759536989571,2.21744311,4509.7,4509.2,2.498]
[1759536989751,2.21744311,4509.7,4509.4,0.4695]
[1759536990161,2.21749672,4509.6,4509.4,0.4695]
[1759536990359,0.1112,4509.5,4509.4,0.4695]
[1759536990762,0.1112,4509.5,4509.2,2.498]
[1759536990960,2.2176391,4509.3,4509.2,2.498]
[1759536991460,2.67832327,4509.8,4509.2,2.498]
[1759536991667,2.21757727,4509.5,4509.2,2.498]
[1759536991975,2.21759752,4509.4,4509.2,2.9675]
[1759536992157,2.2176391,4509.3,4509.2,2.9675]
[1759536992750,2.2176391,4509.3,4509.2,2.498]
[1759536993161,2.2176391,4509.3,4509.1,0.001]
[1759536993162,2.21768828,4509.2,4509.1,0.001]
[1759536993362,2.21768828,4509.2,4509.1,2.5]
[1759536993570,2.67858828,4509.2,4509.1,0.001]
[1759536993737,3.1221169,4509.2,4509.1,2.5]
[1759537001081,3.2333169,4509.2,4509.1,2.5]
[1759537001645,3.2333169,4509.2,4509.1,0.001]
[1759537001845,3.2333169,4509.2,4509.1,1.751]
[1759537002084,3.89887208,4509.2,4509.1,1.751]
[1759537003366,3.89887208,4509.2,4509.1,2.5]
[1759537005788,3.89887208,4509.2,4509.1,0.001]
[1759537005958,3.89887208,4509.2,4509.1,2.5]
[1759537010203,6.29887208,4509.2,4509.1,2.5]
[1759537010704,6.29887208,4509.2,4509.1,0.001]
[1759537011011,6.29887208,4509.2,4509.1,0.41]
[1759537011812,6.30087208,4509.2,4509.1,0.41]
[1759537012014,2.21788502,4508.8,4508.7,0.001]
[1759537012171,2.21788502,4508.8,4508.7,0.02]
[1759537012172,2.34574575,4508.8,4508.7,0.02]
[1759537012373,5.20784575,4508.8,4508.7,0.02]
[1759537012573,5.19118502,4508.8,4508.7,0.02]
[1759537012774,6.01726965,4508.8,4508.7,0.02]
[1759537013115,6.10603101,4508.8,4508.7,0.02]
[1759537014508,6.10603101,4508.8,4508.7,0.001]
[1759537015614,9.72484233,4508.8,4508.7,0.001]
[1759537018416,6.10603101,4508.8,4508.7,0.001]
[1759537020022,5.64393101,4508.8,4508.7,0.001]
[1759537021380,5.64393101,4508.8,4508.7,0.4428]
[1759537022790,5.64393101,4508.8,4508.7,0.001]
[1759537023397,6.10603101,4508.8,4508.7,0.001]
[1759537023794,5.64393101,4508.8,4508.7,0.001]
[1759537023984,6.10603101,4508.8,4508.7,0.001]
[1759537026789,5.64393101,4508.8,4508.7,0.001]
[1759537027688,5.64393101,4508.8,4508.7,0.4428]
[1759537027913,5.64393101,4508.8,4508.7,0.001]
[1759537030198,5.64393101,4508.8,4508.7,0.4428]
[1759537031124,5.64393101,4508.8,4508.7,0.001]
[1759537031723,6.10603101,4508.8,4508.7,0.001]
[1759537032790,6.5830933,4508.8,4508.7,0.001]
[1759537033014,7.2166933,4508.8,4508.7,0.001]
[1759537036497,7.81304804,4508.8,4508.7,0.001]
[1759537038142,7.2166933,4508.8,4508.7,0.001]
[1759537038941,6.7545933,4508.8,4508.7,0.001]
[1759537039138,3.6097933,4508.8,4508.7,0.001]
[1759537039325,2.30664638,4508.8,4508.7,0.4428]
[1759537039525,4.72330711,4508.8,4508.7,0.4428]
[1759537039845,4.70664638,4508.8,4508.7,0.254]
[1759537040011,5.29515411,4508.8,4508.7,0.254]
[1759537040205,5.77260878,4508.8,4508.7,0.0322]
[1759537040606,5.29515411,4508.8,4508.7,0.0322]
[1759537043016,4.61793421,4508.7,4508.6,0.001]
[1759537043216,6.28476363,4508.7,4508.6,0.001]
[1759537045327,6.37352913,4508.7,4508.6,0.001]
[1759537048157,5.93552913,4508.7,4508.6,0.001]
[1759537048547,6.37492913,4508.7,4508.6,0.001]
[1759537049125,6.48612913,4508.7,4508.6,0.001]
[1759537052365,7.11972913,4508.7,4508.6,0.001]
[1759537055334,6.04672913,4508.7,4508.6,0.001]
[1759537059133,6.48612913,4508.7,4508.6,0.001]
[1759537063562,7.11972913,4508.7,4508.6,0.001]
[1759537064088,7.71608387,4508.7,4508.6,0.001]
[1759537065064,7.27668387,4508.7,4508.6,0.001]
[1759537065291,7.71608387,4508.7,4508.6,0.001]
[1759537068267,7.71808387,4508.7,4508.6,0.001]
[1759537072237,7.71808387,4508.7,4508.6,0.4652]
[1759537072238,5.2974281,4508.7,4508.6,0.4652]
[1759537074137,5.2974281,4508.7,4508.6,0.001]
[1759537075597,5.2974281,4508.7,4508.6,0.4652]
[1759537078463,5.2974281,4508.7,4508.6,0.001]
[1759537078866,0.67949389,4508.7,4508.6,0.4652]
[1759537079020,2.41989971,4508.7,4508.6,0.4652]
[1759537079358,2.41989971,4508.7,4508.6,0.001]
[1759537079520,2.43656044,4508.7,4508.6,0.001]
[1759537079872,2.41989971,4508.7,4508.6,0.001]
[1759537080175,2.41989971,4508.7,4508.6,0.4652]
[1759537083073,0.2019655,4508.7,4508.6,0.4652]
[1759537084557,2.41989971,4508.7,4508.6,0.4652]
[1759537084770,0.2019655,4508.7,4508.6,0.4652]
[1759537087999,0.0907655,4508.7,4508.6,0.4652]
[1759537088350,0.002,4508.7,4508.6,0.4652]
[1759537088550,0.002,4508.7,4508.6,0.75569889]
[1759537088989,0.002,4508.7,4508.6,2.70536323]
[1759537089148,0.002,4508.7,4508.6,5.31556323]
[1759537089351,0.002,4508.7,4508.6,5.2933834]
[1759537090712,0.002,4508.7,4508.6,0.5764]
[1759537090854,0.002,4508.7,4508.6,2.9642]
[1759537096960,0.002,4508.7,4508.6,5.20436323]
[1759537097296,0.002,4508.7,4508.6,10.4307834]
[1759537097897,0.002,4508.7,4508.6,38.6518364]
[1759537098095,0.002,4508.7,4508.6,38.7518364]
[1759537098289,0.002,4508.7,4508.6,38.1806014]
[1759537098657,0.002,4508.7,4508.6,34.0173654]
[1759537098870,0.002,4508.7,4508.6,33.6797214]
[1759537099489,0.002,4508.7,4508.6,35.1214504]
[1759537099688,0.002,4508.7,4508.6,35.1657504]
[1759537100561,0.002,4508.7,4508.6,35.2326194]
[1759537100762,0.002,4508.7,4508.6,35.9018624]
[1759537101189,0.002,4508.7,4508.6,40.5419834]
[1759537101390,0.002,4508.7,4508.6,36.5906464]
[1759537101714,0.002,4508.7,4508.6,35.3224204]
[1759537101911,0.002,4508.7,4508.6,34.6516594]
[1759537102114,0.002,4508.7,4508.6,20.6252904]
[1759537102291,0.002,4508.7,4508.6,9.569893]
[1759537102486,0.0907214,4508.7,4508.6,12.067893]
[1759537102737,0.0907214,4508.7,4508.6,9.586535]
[1759537103023,0.0907214,4508.7,4508.6,11.8045184]
[1759537103393,0.0907214,4508.7,4508.6,9.586535]
[1759537104433,0.0907214,4508.7,4508.6,11.8045184]
[1759537104998,0.0907214,4508.7,4508.6,21.4696154]
[1759537105199,0.0907214,4508.7,4508.6,16.7851154]
[1759537105400,0.0907214,4508.7,4508.6,19.8545154]
[1759537105927,0.0907214,4508.7,4508.6,22.8654454]
[1759537106305,0.002,4508.7,4508.6,22.0793064]
[1759537106901,0.002,4508.7,4508.6,13.0586834]
[1759537107219,0.002,4508.7,4508.6,23.5620164]
[1759537107915,0.002,4508.7,4508.6,13.0586834]
[1759537108120,0.002,4508.7,4508.6,20.8084734]
[1759537108897,0.002,4508.7,4508.6,20.0421794]
[1759537109233,0.002,4508.7,4508.6,7.088499]
[1759537109537,0.002,4508.7,4508.6,11.6942824]
[1759537109832,0.0927214,4508.7,4508.6,11.6942824]
[1759537112215,0.0927214,4508.7,4508.6,9.476299]
[1759537112740,0.0927214,4508.7,4508.6,11.6942824]
[1759537116017,0.0927214,4508.7,4508.6,9.476299]
[1759537116854,0.0927214,4508.7,4508.6,11.6942824]
[1759537119418,0.0927214,4508.7,4508.6,11.8054824]
[1759537119694,0.0927214,4508.7,4508.6,7.4762]
[1759537119841,0.0927214,4508.7,4508.6,9.6941834]
[1759537120245,0.0927214,4508.7,4508.6,12.3602954]
[1759537122838,0.0927214,4508.7,4508.6,9.9602954]
[1759537124234,0.0927214,4508.7,4508.6,7.742312]
[1759537124566,0.5229214,4508.7,4508.6,5.0762]
[1759537126861,0.0927214,4508.7,4508.6,5.0762]
[1759537127430,0.0927214,4508.7,4508.6,2.5772]
[1759537127732,0.0927214,4508.7,4508.6,5.0752]
[1759537129355,0.0927214,4508.7,4508.6,2.5772]
[1759537129555,0.5229214,4508.7,4508.6,2.8602]
[1759537129853,0.5229214,4508.7,4508.6,0.3622]
[1759537130053,0.5229214,4508.7,4508.6,2.749]
[1759537130528,0.5229214,4508.7,4508.6,0.251]
[1759537130735,0.5229214,4508.7,4508.6,2.749]
[1759537134359,0.5229214,4508.7,4508.6,0.251]
[1759537134360,0.80831927,4508.7,4508.6,0.251]
[1759537134569,0.80831927,4508.7,4508.6,2.749]
[1759537134570,0.5229214,4508.7,4508.6,2.749]
[1759537141133,2.74085561,4508.7,4508.6,2.749]
[1759537146696,2.74085561,4508.7,4508.6,0.251]
[1759537146893,2.74085561,4508.7,4508.6,2.749]
[1759537147136,3.24971215,4508.7,4508.6,0.251]
[1759537147323,5.64971215,4508.7,4508.6,2.749]
[1759537156032,5.64971215,4508.7,4508.6,0.251]
[1759537156236,5.64971215,4508.7,4508.6,2.75]
[1759537161968,5.64971215,4508.7,4507.6,0.001]
[1759537161969,4.6182294,4508.1,4507.6,0.001]
[1759537162170,2.21842624,4507.7,4507.6,0.001]
[1759537163172,2.64912624,4507.7,4507.6,2.5]
[1759537165883,0.4307,4507.7,4507.6,2.5]
[1759537166049,0.4307,4507.7,4507.6,2.9307]
[1759537166237,0.5419,4507.7,4507.6,2.9307]
[1759537166442,2.76032624,4507.7,4507.6,2.9307]
[1759537169145,0.5419,4507.7,4507.6,2.9307]
[1759537169540,0.5419,4507.7,4507.6,2.5]
[1759537169740,0.5419,4507.7,4507.6,3.181]
[1759537170354,0.5419,4507.7,4507.6,2.931]
[1759537181833,2.76032624,4507.7,4507.6,2.5]
[1759537182150,0.5419,4507.7,4507.6,2.5]
[1759537186419,0.4307,4507.7,4507.6,2.931]
[1759537188630,0.4307,4507.7,4507.6,2.5]
[1759537188849,0.4307,4507.7,4507.6,5.39947546]
[1759537189173,0.1132,4508.1,4507.6,3.181]
[1759537189374,0.4307,4508.0,4507.6,2.5]
[1759537189559,0.4307,4508.0,4507.7,0.431]
[1759537189763,0.4307,4508.0,4507.8,2.52118377]
[1759537191932,0.002,4508.1,4507.9,0.4406]
[1759537192264,0.002,4508.1,4508.0,2.81736116]
[1759537192639,0.002,4508.1,4508.0,3.25796116]
[1759537193655,0.002,4508.1,4508.0,7.85405699]
[1759537194049,0.002,4508.1,4508.0,5.63577838]
[1759537194255,0.002,4508.1,4508.0,7.85405699]
[1759537199987,0.002,4508.1,4508.0,5.19417838]
[1759537200569,0.002,4508.1,4508.0,4.898]
[1759537200769,0.002,4508.1,4508.0,2.4]
[1759537200965,0.002,4508.1,4507.6,0.001]
[1759537200966,0.4317,4508.1,4507.6,0.001]
[1759537201148,0.4297,4508.0,4507.7,2.498]
[1759537201351,0.002,4508.1,4507.7,2.498]
[1759537201352,0.4297,4507.9,4507.7,2.498]
[1759537201578,0.002,4508.1,4507.7,2.498]
[1759537201790,0.4297,4507.8,4507.7,2.498]
[1759537203490,0.4297,4507.8,4507.6,0.001]
[1759537203672,0.4297,4507.8,4507.7,2.498]
[1759537204068,1.0953497,4507.8,4507.7,2.498]
[1759537204604,1.0953497,4507.8,4507.6,0.001]
[1759537204822,1.0953497,4507.8,4507.7,2.498]
[1759537205107,0.4297,4507.8,4507.7,2.498]
[1759537205283,1.20659253,4507.8,4507.7,2.498]
[1759537205684,0.77689253,4507.8,4507.7,2.498]
[1759537205881,0.66569253,4507.8,4507.7,2.52018426]
[1759537207108,0.002,4508.1,4508.0,2.21827861]
[1759537207311,0.002,4508.1,4508.0,4.84966139]
[1759537207510,0.002,4508.1,4508.0,5.26807861]
[1759537208904,0.002,4508.1,4508.0,3.0498]
[1759537209101,0.002,4508.1,4508.0,2.6092]
[1759537209305,0.002,4508.1,4508.0,0.1112]
[1759537209612,0.002,4508.1,4507.7,0.1112]
[1759537209613,0.4317,4508.1,4507.7,0.1112]
[1759537209783,0.4297,4508.0,4507.8,2.498]
[1759537210000,0.4297,4507.9,4507.8,2.498]
[1759537210803,0.4297,4507.9,4507.6,0.001]
[1759537211138,0.4297,4507.8,4507.7,2.498]
[1759537211717,1.20661321,4507.8,4507.7,2.498]
[1759537211918,1.54929755,4507.8,4507.7,2.498]
[1759537212332,1.20661321,4507.8,4507.7,2.498]
[1759537215204,0.77691321,4507.8,4507.7,2.498]
[1759537215459,0.77691321,4507.8,4507.7,2.52018426]
[1759537216417,0.77691321,4507.8,4507.7,2.498]
[1759537224454,1.20691321,4507.8,4507.7,2.498]
[1759537225372,1.44036769,4507.8,4507.7,2.499]
[1759537226756,1.44036769,4507.8,4507.6,0.001]
[1759537226949,1.44036769,4507.8,4507.7,2.499]
[1759537227149,0.77465448,4507.8,4507.7,2.499]
[1759537227674,1.20694424,4507.8,4507.7,2.499]
[1759537234555,1.20694424,4507.8,4507.6,0.001]
[1759537234762,2.67868697,4507.7,4507.6,0.001]
[1759537234997,2.67868697,4507.7,4507.6,2.5]
[1759537235200,2.76746133,4507.7,4507.6,2.5]
[1759537236263,3.27716035,4507.7,4507.6,2.5]
[1759537239502,1.05873411,4507.7,4507.6,2.5]
[1759537239663,0.54903509,4507.7,4507.6,2.5]
[1759537239864,0.10543509,4507.7,4507.6,2.5]
[1759537241119,0.54903509,4507.7,4507.6,2.5]
[1759537241914,0.10543509,4507.7,4507.6,2.5]
[1759537243418,2.76746133,4507.7,4507.6,2.5]
[1759537243622,3.27715584,4507.7,4507.6,2.5]
[1759537245599,3.27715584,4507.7,4507.6,0.001]
[1759537245796,1.0587296,4507.7,4507.6,2.5]
[1759537246139,2.76746133,4507.7,4507.6,2.5]
[1759537247214,0.54903509,4507.7,4507.6,2.5]
[1759537248041,2.76746133,4507.7,4507.6,2.5]
[1759537248238,0.54903509,4507.7,4507.6,2.5]
[1759537252034,0.08877436,4507.7,4507.6,2.5]
[1759537253333,0.74960585,4507.7,4507.6,2.5]
[1759537255783,0.08877436,4507.7,4507.6,2.9699]
[1759537256591,0.08877436,4507.7,4507.6,2.5]
[1759537257355,2.7511006,4507.7,4507.6,0.001]
[1759537257547,2.7511006,4507.7,4507.6,0.359]
[1759537257874,3.24971238,4507.7,4507.6,0.359]
[1759537263414,3.24971238,4507.7,4507.6,0.001]
[1759537263616,3.24971238,4507.7,4507.6,2.296]
[1759537266716,3.36091238,4507.7,4507.6,2.296]
[1759537268532,2.91701238,4507.7,4507.6,2.296]
[1759537271202,0.69858614,4507.7,4507.6,2.296]
[1759537271401,0.19997436,4507.7,4507.6,2.7659]
[1759537272409,2.4184006,4507.7,4507.6,2.7659]
[1759537272823,0.19997436,4507.7,4507.6,2.7659]
[1759537275040,0.1112,4507.7,4507.6,2.7659]
[1759537275197,0.1112,4507.7,4507.6,3.04249]
[1759537278636,0.1112,4508.0,4507.6,3.04249]
[1759537278939,0.1112,4508.0,4507.7,0.49208426]
[1759537279933,0.1112,4508.0,4507.7,0.02218426]
[1759537280133,0.002,4508.1,4507.8,0.72937743]
[1759537280533,0.002,4508.1,4507.9,0.4401]
[1759537281610,0.002,4508.1,4508.0,0.4401]
[1759537281799,0.002,4508.1,4508.0,2.9401]
[1759537282005,0.002,4508.1,4508.0,3.23411]